fUST/lending_fUST_20251204
["ID","MTS","AMOUNT","RATE_DAILY","PERIOD"]
[396191953,1764796233784,-154.49072783,0.00015937,2]
[396191954,1764796233793,-159.04455864,0.00015937,2]
[396191955,1764796233803,-500.0,0.00016074,2]
[396191956,1764796233813,-250.0,0.00016209,2]
[396191957,1764796233822,-500.0,0.00016211,2]
[396191958,1764796233831,-560.0,0.00016242,2]
[396191959,1764796233840,-204.0,0.00016267,2]
[396191960,1764796233850,-500.0,0.00016348,2]
[396191961,1764796233859,-243.2,0.00016476,2]
[396191962,1764796233870,-500.0,0.00016485,2]
[396191963,1764796233879,-150.0,0.00016599,2]
[396191964,1764796233889,-330.58659943,0.00016612,2]
[396191982,1764796238579,-150.41340057,0.00016612,2]
[396191983,1764796238589,-500.0,0.00016622,2]
[396191984,1764796238599,-399.08732633,0.00016725,2]
[396191985,1764796238608,-500.0,0.00016759,2]
[396191986,1764796238617,-660.0,0.0001679,2]
[396191987,1764796238626,-500.0,0.00016896,2]
[396191988,1764796238635,-157.04764859,0.000169,2]
[396191989,1764796238644,-453.04838257,0.00017033,2]
[396191990,1764796238654,-803.18539828,0.00017215,2]
[396192114,1764796241279,-196.81460172,0.00017215,2]
[396192116,1764796241288,-243.2,0.00017219,2]
[396192118,1764796241297,-1359.0,0.0001728,2]
[396192120,1764796241307,-2000.99784328,0.0001728,2]
[396192123,1764796241319,-153.00215672,0.0001728,2]
[396192125,1764796241329,-497.76043815,0.0001728,2]
[396192357,1764796243565,-133.23956185,0.0001728,2]
[396192359,1764796243574,-150.0,0.0001732,2]
[396192361,1764796243583,-34.68394995,0.00017338,2]
[396192364,1764796243595,-651.0,0.00017338,2]
[396192511,1764796245205,163.35515478,0.00032877,120]
[396192642,1764796246430,-74.31605005,0.00017338,2]
[396192644,1764796246440,-3000.0,0.00017553,7]
[396192646,1764796246450,-427.34255841,0.00017799,2]
[396192657,1764796246541,-40.62640402,0.00017799,2]
[396192659,1764796246551,-500.0,0.00017799,2]
[396192661,1764796246561,-500.0,0.00017799,2]
[396192663,1764796246570,-185.30650504,0.00017799,2]
[396192665,1764796246580,-500.0,0.00017799,2]
[396192667,1764796246590,-500.0,0.00017799,2]
[396192669,1764796246599,-500.0,0.00017799,2]
[396192671,1764796246608,-500.0,0.00017799,2]
[396192673,1764796246618,-6071.01777202,0.000178,3]
[396193232,1764796375439,500.0,0.00032876,120]
[396193233,1764796443147,250.0,0.0002,30]
[396193234,1764796456885,200.0,0.0003025,120]
[396193235,1764796457913,200.0,0.0003025,120]
[396193236,1764796458940,200.0,0.0003025,120]
[396193237,1764796502247,10544.0,0.00032876,120]
[396193238,1764796816352,1037.18,0.00032876,120]
[396193239,1764797058680,999.0,0.00032876,120]
[396193240,1764797319368,999.0,0.00032876,120]
[396193241,1764797403039,250.0,0.0002,30]
[396193266,1764797432523,-454.58060967,0.00013699,2]
[396193267,1764797432533,-150.0,0.00013699,2]
[396193268,1764797432542,-263.0,0.00013699,2]
[396193269,1764797432554,-1000.0,0.00013699,2]
[396193270,1764797432563,-1000.0,0.00013699,2]
[396193271,1764797432572,-1000.0,0.00013699,2]
[396193272,1764797432581,-283.5395,0.00013699,2]
[396193273,1764797432590,-300.0,0.00013972,2]
[396193274,1764797432600,-300.0,0.00013972,2]
[396193275,1764797432609,-300.0,0.00013972,2]
[396193277,1764797432619,-300.0,0.00013972,2]
[396193278,1764797432628,-300.0,0.00013972,2]
[396193279,1764797432637,-300.0,0.00013972,2]
[396193280,1764797432647,-300.0,0.00013972,2]
[396193281,1764797432656,-300.0,0.00013972,2]
[396193282,1764797432665,-300.0,0.00013972,2]
[396193283,1764797432674,-300.0,0.00013972,2]
[396193285,1764797432683,-300.0,0.00013972,2]
[396193287,1764797432692,-300.0,0.00013972,2]
[396193289,1764797432702,-300.0,0.00013972,2]
[396193291,1764797432711,-300.0,0.00013972,2]
[396193293,1764797432720,-300.0,0.00013972,2]
[396193295,1764797432729,-579.532,0.00014621,2]
[396193297,1764797432739,-631.0,0.00014621,2]
[396193299,1764797432751,-1359.0,0.00014621,2]
[396193301,1764797432760,-414.0,0.00014621,2]
[396193303,1764797432770,-4121.84789027,0.00014988,2]
[396193414,1764797443651,-541.65,0.00014988,2]
[396193433,1764797446557,-2543.63165485,0.00014988,2]
[396193434,1764797446568,-741.06703611,0.00014988,2]
[396193435,1764797462759,10544.0,0.00032876,120]
[396193436,1764797533182,999.0,0.00032876,120]
[396193437,1764797724133,708.1558,0.00032877,120]
[396193438,1764797798537,999.0,0.00032876,120]
[396193439,1764798024121,999.0,0.00032876,120]
[396193440,1764798132861,300.0,0.0003287,120]
[396193442,1764798245162,297.9885107,0.00032876,120]
[396193443,1764798261783,999.0,0.00032876,120]
[396193444,1764798362862,250.0,0.0002,30]
[396193445,1764798421874,10544.0,0.00032876,120]
[396193446,1764798498279,999.0,0.00032876,120]
[396193481,1764798631900,-190.85658578,0.00011629,2]
[396193482,1764798631910,-248.0,0.00011989,2]
[396193484,1764798631919,-150.0,0.00012112,2]
[396193486,1764798631929,-1000.0,0.00013699,2]
[396193488,1764798631939,-313.6128,0.00013699,2]
[396193490,1764798631948,-177.0,0.00014112,2]
[396193491,1764798631958,-1200.0,0.00014689,2]
[396193492,1764798631968,-300.0,0.0001469,2]
[396193493,1764798631977,-300.0,0.0001469,2]
[396193494,1764798631988,-196.916,0.00014691,2]
[396193495,1764798631997,-1359.0,0.00014691,2]
[396193497,1764798632007,-1000.0,0.00014705,2]
[396193499,1764798632016,-300.0,0.00014735,2]
[396193501,1764798632026,-300.0,0.00014735,2]
[396193503,1764798632035,-500.0,0.00014735,2]
[396193505,1764798632047,-404.52542748,0.00014735,2]
[396193507,1764798632058,-12066.39031598,0.00014736,2]
[396193509,1764798632074,-11856.30000003,0.00014736,2]
[396193542,1764798637914,-229.71455352,0.00014735,2]
[396193543,1764798637923,-167.82649144,0.00014735,2]
[396193544,1764798637975,-332.17350856,0.00014735,2]
[396193545,1764798637984,-500.0,0.00014735,2]
[396193546,1764798638000,-148.10544648,0.00014735,2]
[396193547,1764798638029,-351.89455352,0.00014735,2]
[396193548,1764798638039,-8311.30184527,0.00014736,2]
[396193557,1764798639997,-1046.33584029,0.00014736,2]
[396193898,1764798643450,-66719.67199843,0.00014736,2]
[396193900,1764798643459,-868030.26791657,0.0001489,2]
[396193902,1764798643471,-21969.73208343,0.0001489,2]
[396193904,1764798643480,-713.08291059,0.00014988,2]
[396193906,1764798643489,-195.41700248,0.00014989,2]
[396193908,1764798643499,-707.03671712,0.00015,2]
[396193910,1764798643508,-2000.0,0.00015,2]
[396193912,1764798643517,-254.621916,0.00015068,2]
[396193914,1764798643526,-150.0,0.00015248,2]
[396193916,1764798643535,-10.10937038,0.00015289,2]
[396194586,1764798708502,736.873009,0.00030137,120]
[396194587,1764798729199,999.0,0.00032876,120]
[396194589,1764799230107,999.0,0.00032876,120]
[396194593,1764799323156,250.0,0.0002,30]
[396194594,1764799324370,10544.0,0.00032876,120]
[396194812,1764799457146,999.0,0.00032876,120]
[396194820,1764799714423,999.0,0.00032876,120]
[396194843,1764799831839,-261.0,0.00013515,2]
[396194844,1764799831849,-545.19976818,0.00013515,2]
[396194874,1764799837967,-923.61465864,0.00013515,2]
[396194876,1764799837976,-150.0,0.00013519,2]
[396194877,1764799837986,-2417.44967211,0.00013523,2]
[396194878,1764799837995,-755.294067,0.00013699,2]
[396194879,1764799838004,-300.0,0.00013909,2]
[396194880,1764799838014,-294.0,0.00013909,2]
[396194881,1764799838024,-160.0,0.00013909,2]
[396194882,1764799838033,-1200.0,0.00013909,2]
[396194883,1764799838043,-13054.0614066,0.00013911,2]
[396194884,1764799838053,-300.0,0.00014188,2]
[396194885,1764799838063,-300.0,0.00014188,2]
[396194886,1764799838072,-300.0,0.00014188,2]
[396194887,1764799838082,-300.0,0.00014188,2]
[396194888,1764799838091,-300.0,0.00014188,2]
[396194889,1764799838100,-300.0,0.00014188,2]
[396194890,1764799838110,-300.0,0.00014188,2]
[396194891,1764799838125,-300.0,0.00014188,2]
[396194892,1764799838134,-300.0,0.00014188,2]
[396194893,1764799838143,-300.0,0.00014188,2]
[396194894,1764799838153,-300.0,0.00014188,2]
[396194895,1764799838163,-300.0,0.00014188,2]
[396194896,1764799838172,-300.0,0.00014188,2]
[396194897,1764799838182,-300.0,0.00014188,2]
[396194898,1764799838192,-300.0,0.00014188,2]
[396194899,1764799838202,-600.0,0.00014471,2]
[396194900,1764799838211,-283.16779924,0.00014635,2]
[396194901,1764799838221,-500.0,0.00014635,2]
[396194902,1764799838231,-500.0,0.00014635,2]
[396194903,1764799838241,-500.0,0.00014635,2]
[396194904,1764799838250,-185.68619275,0.00014635,2]
[396194905,1764799838263,-500.0,0.00014635,2]
[396194906,1764799838272,-500.0,0.00014635,2]
[396194907,1764799838282,-500.0,0.00014635,2]
[396194908,1764799838291,-334.60267284,0.00014635,2]
[396194909,1764799838300,-500.0,0.00014635,2]
[396194910,1764799838310,-446.22469538,0.00014635,2]
[396194911,1764799838319,-500.0,0.00014635,2]
[396194912,1764799838329,-189.43008433,0.00014635,2]
[396194913,1764799838338,-500.0,0.00014635,2]
[396194914,1764799838348,-500.0,0.00014635,2]
[396194915,1764799838358,-500.0,0.00014635,2]
[396194916,1764799838367,-529.5432947,0.00014635,2]
[396194917,1764799838376,-59651.36201821,0.00014636,2]
[396194918,1764799838388,-607.05199346,0.00014636,2]
[396194919,1764799838400,-1165.76805551,0.00014636,2]
[396194920,1764799838411,-19332.11915625,0.00014636,2]
[396194958,1764799839983,-286.17550711,0.00014636,2]
[396195134,1764799842096,-11.1898455,0.00014636,2]
[396195136,1764799842107,-615.17875293,0.00014636,2]
[396195138,1764799842118,-367.6422286,0.00014636,2]
[396195140,1764799842129,-46888.5,0.00014636,2]
[396195142,1764799842140,-872.29,0.00014636,2]
[396195251,1764799843144,-1412.0,0.00014636,2]
[396195253,1764799843155,-36720.84998526,0.00014636,2]
[396195256,1764799843166,-19779.80176915,0.00014636,2]
[396195261,1764799843205,-19560.95694905,0.00014636,2]
[396195263,1764799843215,-12011.82456332,0.00014636,2]
[396195265,1764799843227,-296.04,0.00014636,2]
[396195380,1764799845924,-221673.16204304,0.00014636,2]
[396196506,1764799861530,1519.98061742,0.00032875,120]
[396202793,1764799961544,999.0,0.00032876,120]
[396202794,1764800169106,999.0,0.00032876,120]
[396202797,1764800283218,250.0,0.0002,30]
[396202798,1764800283889,10544.0,0.00032876,120]
[396202799,1764800406007,999.0,0.00032876,120]
[396202800,1764800658721,541.1,0.00032876,120]
[396202801,1764800663153,999.0,0.00032876,120]
[396202802,1764800898015,999.0,0.00032876,120]
[396202862,1764801031950,-150.0,0.00013699,2]
[396202864,1764801031960,-488.32949289,0.00013699,2]
[396202867,1764801032011,-511.67050711,0.00013699,2]
[396202868,1764801032020,-263.0,0.00013699,2]
[396202869,1764801032029,-227.64518014,0.00013699,2]
[396202891,1764801038347,-150.0,0.00014113,2]
[396202892,1764801038358,-151.0,0.00014527,2]
[396202893,1764801038368,-21.24925186,0.00014534,2]
[396202895,1764801038380,-981.75074814,0.00014534,2]
[396202897,1764801038389,-300.0,0.00014534,2]
[396202899,1764801038399,-315.0,0.00014534,2]
[396202901,1764801038409,-210.40538067,0.00014535,2]
[396202903,1764801038421,-500.0,0.00014535,2]
[396202905,1764801038430,-635.57228644,0.00014535,2]
[396202907,1764801038440,-450.54865267,0.00014535,2]
[396202910,1764801038462,-49.45134733,0.00014535,2]
[396202912,1764801038472,-500.0,0.00014535,2]
[396202915,1764801038481,-336.61592163,0.00014535,2]
[396202917,1764801038492,-37.36445895,0.00014536,2]
[396203070,1764801043193,-42643.35327549,0.00014536,2]
[396203080,1764801046085,-847319.28226556,0.00014536,2]
[396203081,1764801046095,-1768.0160928,0.00014631,2]
[396203082,1764801046105,-2079.7636201,0.00014631,2]
[396203083,1764801046115,-268.843,0.00014786,2]
[396203084,1764801046124,-300.0,0.00014928,2]
[396203085,1764801046133,-300.0,0.00014928,2]
[396203086,1764801046142,-300.0,0.00014928,2]
[396203087,1764801046151,-300.0,0.00014928,2]
[396203088,1764801046161,-300.0,0.00014928,2]
[396203089,1764801046171,-300.0,0.00014928,2]
[396203090,1764801046180,-300.0,0.00014928,2]
[396203091,1764801046190,-300.0,0.00014928,2]
[396203092,1764801046200,-300.0,0.00014928,2]
[396203093,1764801046210,-300.0,0.00014928,2]
[396203094,1764801046220,-300.0,0.00014928,2]
[396203095,1764801046234,-300.0,0.00014928,2]
[396203097,1764801046244,-300.0,0.00014928,2]
[396203099,1764801046254,-300.0,0.00014928,2]
[396203100,1764801046263,-300.0,0.00014928,2]
[396203101,1764801046273,-600.0,0.00014928,2]
[396203102,1764801046282,-14537.01365451,0.0001499,2]
[396203103,1764801046293,-32201.41562,0.0001499,2]
[396203104,1764801046313,-20166.69176862,0.0001499,2]
[396203105,1764801095030,500.0,0.00032876,120]
[396203106,1764801109317,2075.01746912,0.00032876,120]
[396203107,1764801154192,999.0,0.00032876,120]
[396203108,1764801242388,250.0,0.0002,30]
[396203109,1764801242970,10544.0,0.00032876,120]
[396203110,1764801263423,500.0,0.00032876,120]
[396203111,1764801269741,500.0,0.00032876,120]
[396203112,1764801278044,500.0,0.00032876,120]
[396203113,1764801289289,500.0,0.00032876,120]
[396203114,1764801295036,500.0,0.00032876,120]
[396203115,1764801343264,30000.0,0.0003287,120]
[396203116,1764801385489,999.0,0.00032876,120]
[396203117,1764801426057,7149.0,0.00032877,120]
[396203118,1764801461662,385.64609609,0.000328,120]
[396203119,1764801484507,153.76885998,0.00032,120]
[396203120,1764801518061,1173.0,0.00032877,120]
[396203121,1764801628300,999.0,0.00032876,120]
[396203122,1764802085780,999.0,0.00032876,120]
[396203123,1764802202967,250.0,0.0002,30]
[396203124,1764802203523,10544.0,0.00032876,120]
[396203172,1764802232129,-150.0,0.00013699,2]
[396203174,1764802232138,-531.6994929,0.00013699,2]
[396203226,1764802238435,-6841.05023321,0.00013699,2]
[396203228,1764802238447,-5681.31168139,0.00013699,2]
[396203230,1764802238458,-751.210448,0.00013699,2]
[396203232,1764802238468,-500.0,0.00013699,2]
[396203234,1764802238479,-263.0,0.00013699,2]
[396203236,1764802238489,-300.0,0.00013972,2]
[396203238,1764802238499,-300.0,0.00013972,2]
[396203240,1764802238509,-300.0,0.00013972,2]
[396203242,1764802238519,-300.0,0.00013972,2]
[396203244,1764802238529,-300.0,0.00013972,2]
[396203246,1764802238538,-300.0,0.00013972,2]
[396203247,1764802238548,-300.0,0.00013972,2]
[396203250,1764802238560,-300.0,0.00013972,2]
[396203251,1764802238570,-300.0,0.00013972,2]
[396203253,1764802238580,-300.0,0.00013972,2]
[396203255,1764802238590,-300.0,0.00013972,2]
[396203257,1764802238599,-300.0,0.00013972,2]
[396203259,1764802238609,-300.0,0.00013972,2]
[396203261,1764802238618,-300.0,0.00013972,2]
[396203263,1764802238628,-300.0,0.00013972,2]
[396203265,1764802238637,-1072.51206709,0.00013972,2]
[396203267,1764802238647,-600.0,0.0001425,2]
[396203269,1764802238655,-500.0,0.00014335,2]
[396203270,1764802238665,-500.0,0.00014335,2]
[396203272,1764802238674,-494.9006005,0.00014335,2]
[396203274,1764802238684,-24732.25326922,0.00014336,2]
[396203277,1764802238699,-4323.15,0.00014336,2]
[396203279,1764802238710,-4789.58329938,0.00014336,2]
[396203344,1764802240470,-467.93,0.00014335,2]
[396203599,1764802243543,-32.07,0.00014335,2]
[396203601,1764802243553,-500.0,0.00014335,2]
[396203603,1764802243562,-500.0,0.00014335,2]
[396203604,1764802243572,-454.71598137,0.00014335,2]
[396203606,1764802243581,-27490.41144976,0.00014336,2]
[396203875,1764802246340,-828664.60198164,0.00014336,2]
[396203877,1764802246350,-1326.0120696,0.00014585,2]
[396203879,1764802246359,-2000.0,0.00014636,2]
[396203881,1764802246369,-514.246,0.00014636,2]
[396203883,1764802246379,-1000.0,0.00014636,2]
[396203885,1764802246388,-1000.0,0.00014636,2]
[396203887,1764802246397,-1000.0,0.00014636,2]
[396203889,1764802246407,-1000.0,0.00014636,2]
[396203891,1764802246417,-1000.0,0.00014636,2]
[396203893,1764802246428,-1000.0,0.00014636,2]
[396203895,1764802246437,-1000.0,0.00014636,2]
[396203897,1764802246446,-1000.0,0.00014636,2]
[396203899,1764802246455,-173.063,0.00014636,2]
[396203901,1764802246465,-20593.60658709,0.00014736,2]
[396203903,1764802246475,-1359.0,0.00014896,2]
[396203905,1764802246485,-2154.0,0.00014896,2]
[396203907,1764802246496,-501.10789786,0.00015017,2]
[396203909,1764802246505,-659.22656307,0.0001507,2]
[396203911,1764802246514,-901.99421615,0.00015087,2]
[396203913,1764802246523,-1603.54527315,0.00015157,2]
[396203915,1764802246533,-150.0,0.00015159,2]
[396203917,1764802246542,-1186.60781353,0.00015192,2]
[396203920,1764802246552,-2505.5394893,0.00015227,2]
[396203923,1764802246561,-3607.97686459,0.00015297,2]
[396203925,1764802246571,-2109.52500183,0.00015314,2]
[396203927,1764802246581,-4910.85739903,0.00015367,2]
[396203929,1764802246590,-6414.1810926,0.00015437,2]
[396203931,1764802246599,-3296.13281536,0.00015437,2]
[396203933,1764802246609,-1453.03010688,0.00015489,2]
[396203935,1764802246619,-1170.16692014,0.00015633,3]
[396203937,1764802246628,-720.0,0.00015675,2]
[396203939,1764802246638,-177.0,0.00015699,2]
[396203941,1764802246647,-160.0,0.00015922,2]
[396203943,1764802246656,-150.0,0.00015974,2]
[396203945,1764802246666,-214.87348946,0.00016,2]
[396203947,1764802246675,-319.61505548,0.00016044,2]
[396203949,1764802246685,-305.76936491,0.00016057,2]
[396203952,1764802246695,-203.697532,0.00016105,2]
[396203954,1764802246705,-1326.0120696,0.00016109,2]
[396203956,1764802246715,-365.27434912,0.00016216,2]
[396203957,1764802246724,-349.10125205,0.00016229,2]
[396203960,1764802246734,-235.4,0.00016438,2]
[396203962,1764802246743,-260.0,0.0001647,2]
[396203964,1764802246753,-150.0,0.00016602,2]
[396203966,1764802246762,-399.08732633,0.00016725,2]
[396203967,1764802246771,-193.99712611,0.00016912,2]
[396203969,1764802246781,-235.4,0.00016944,2]
[396203971,1764802246791,-360.0,0.00017018,2]
[396203973,1764802246800,-864.0,0.00017243,2]
[396203975,1764802246809,-150.0,0.00017324,2]
[396203977,1764802246818,-235.4,0.00017449,2]
[396203979,1764802246828,-3000.0,0.00017534,7]
[396203981,1764802246837,-460.0,0.00017566,2]
[396203983,1764802246846,-1326.0120696,0.00017634,2]
[396203985,1764802246855,-204.0,0.00017699,2]
[396203987,1764802246866,-157.0476486,0.000177,2]
[396203989,1764802246875,-499.99999901,0.000178,2]
[396203991,1764802246885,-214285.72,0.000178,3]
[396203993,1764802246897,-399.08732633,0.000178,3]
[396203995,1764802246907,-235.4,0.00017955,2]
[396203997,1764802246917,-168.0,0.00017992,2]
[396203999,1764802246926,-150.0,0.00018046,2]
[396204001,1764802246935,-168.0,0.00018047,2]
[396204003,1764802246945,-35714.28,0.00018064,3]
[396204005,1764802246954,-153.0,0.00018082,2]
[396204007,1764802246964,-560.0,0.00018114,2]
[396204009,1764802246974,-168.0,0.00018257,2]
[396204011,1764802246984,-399.08732633,0.000183,3]
[396204013,1764802246993,-1879.43961433,0.00018359,3]
[396204015,1764802247002,-2000.0,0.00018364,3]
[396204017,1764802247012,-168.0,0.00018366,2]
[396204019,1764802247021,-2000.0,0.00018373,3]
[396204021,1764802247030,-558.95621362,0.00018379,2]
[396204023,1764802247039,-2000.0,0.00018381,3]
[396204025,1764802247049,-2000.0,0.0001839,3]
[396204027,1764802247058,-2000.0,0.00018395,3]
[396204029,1764802247068,-2000.0,0.00018399,3]
[396204031,1764802247078,-168.0,0.00018445,2]
[396204033,1764802247087,-235.4,0.00018461,2]
[396204035,1764802247097,-168.0,0.00018481,2]
[396204037,1764802247105,-168.0,0.00018501,2]
[396204039,1764802247115,-168.0,0.00018518,2]
[396204041,1764802247124,-3000.0,0.0001863,7]
[396204043,1764802247133,-660.0,0.00018662,2]
[396204045,1764802247142,-168.0,0.00018678,2]
[396204047,1764802247151,-465.27926,0.0001878,5]
[396204049,1764802247160,-600.0,0.00018815,2]
[396204051,1764802247169,-277.80439327,0.00018822,2]
[396204053,1764802247179,-168.0,0.00018863,2]
[396204055,1764802247188,-168.0,0.00018878,2]
[396204057,1764802247198,-399.08732633,0.000189,3]
[396204059,1764802247209,-277.80439327,0.00018932,2]
[396204061,1764802247219,-157.04764859,0.00018933,2]
[396204063,1764802247229,-168.0,0.00018963,2]
[396204065,1764802247240,-235.4,0.00018966,2]
[396204067,1764802247250,-1000.0,0.00018967,10]
[396204069,1764802247261,-1000.0,0.00019,5]
[396204071,1764802247273,-600.0,0.00019011,2]
[396204073,1764802247284,-277.80439327,0.00019014,2]
[396204074,1764802247299,-277.80439327,0.00019096,2]
[396204076,1764802247310,-1326.0120696,0.00019158,2]
[396204078,1764802247325,-675.48264931,0.00019178,2]
[396204152,1764802248077,-678.01350082,0.00019178,2]
[396204155,1764802248096,-3646.50384987,0.00019178,2]
[396204157,1764802248105,-5000.0,0.00019178,2]
[396204159,1764802248115,-5000.0,0.00019178,2]
[396204161,1764802248125,-5000.0,0.00019178,2]
[396204163,1764802248134,-150.0,0.00019178,2]
[396204165,1764802248144,-166.66,0.000192,2]
[396204167,1764802248153,-3441.15,0.000192,2]
[396204168,1764802248162,-277.80439327,0.00019205,2]
[396204170,1764802248171,-1121.94452642,0.00019207,2]
[396204172,1764802248180,-600.0,0.00019207,2]
[396204174,1764802248189,-760.0,0.0001921,2]
[396204177,1764802248199,-277.80439327,0.00019288,2]
[396204179,1764802248210,-196.09721878,0.00019342,2]
[396204181,1764802248219,-277.80439327,0.0001937,2]
[396204183,1764802248228,-600.0,0.00019403,2]
[396204184,1764802248238,-168.0,0.00019407,2]
[396204186,1764802248247,-168.0,0.00019413,2]
[396204189,1764802248256,-5000.0,0.00019414,2]
[396204190,1764802248266,-168.0,0.00019421,2]
[396204192,1764802248275,-235.4,0.00019472,2]
[396204194,1764802248284,-208.60347652,0.00019479,3]
[396204196,1764802248293,-277.80439327,0.00019479,2]
[396204198,1764802248302,-203.697532,0.0001953,2]
[396204200,1764802248313,-277.80439327,0.00019562,2]
[396204202,1764802248322,-168.0,0.00019569,2]
[396204204,1764802248331,-600.0,0.00019599,2]
[396204206,1764802248340,-277.80439327,0.00019644,2]
[396204208,1764802248350,-231.0,0.00019699,2]
[396204210,1764802248359,-2951.3,0.000197,2]
[396204212,1764802248368,-316090.62490515,0.000197,2]
[396204217,1764802248398,-9239.59067387,0.000197,2]
[396205501,1764802359647,999.0,0.00032876,120]
[396205502,1764802362226,1000.0,0.00032876,120]
[396205503,1764802388378,1723.0,0.00032876,120]
[396205504,1764802419376,500.0,0.00032876,120]
[396205505,1764802442794,400.0,0.00032877,120]
[396205506,1764802465701,150.0,0.0003287,120]
[396205507,1764802502641,-436.41204462,0.00013562,2]
[396205508,1764802502662,-388.9505,0.00013699,2]
[396205509,1764802543105,-2236.0,0.00014,2]
[396205510,1764802543132,-500.0,0.00014335,2]
[396205511,1764802543156,-546.43042035,0.00014335,2]
[396205512,1764802543179,-217.1906646,0.00014335,2]
[396205513,1764802543208,-46500.37891505,0.00014336,2]
[396205514,1764802556828,-50000.0,0.00014336,2]
[396205515,1764802559649,-50000.0,0.00014336,2]
[396205516,1764802561306,-50000.0,0.00014336,2]
[396205517,1764802562751,-50000.0,0.00014336,2]
[396205518,1764802563821,-50000.0,0.00014336,2]
[396205519,1764802572245,-50000.0,0.00014336,2]
[396205520,1764802587046,-436.41204462,0.00013699,2]
[396205521,1764802587073,-49563.58795538,0.00014336,2]
[396205522,1764802601272,-50000.0,0.00014336,2]
[396205523,1764802602050,999.0,0.00032876,120]
[396205524,1764802618887,-50000.0,0.00014336,2]
[396205525,1764802619978,-50000.0,0.00014336,2]
[396205526,1764802621296,-50000.0,0.00014336,2]
[396205527,1764802642518,-500.0,0.00013273,2]
[396205528,1764802642540,-500.0,0.00013699,2]
[396205529,1764802642563,-1000.0,0.00013821,2]
[396205530,1764802642585,-1000.0,0.00014247,2]
[396205531,1764802642607,-300.0,0.00014335,2]
[396205532,1764802642635,-46700.0,0.00014336,2]
[396205533,1764802661252,-150.0,0.00013751,2]
[396205534,1764802661280,-49850.0,0.00014336,2]
[396205535,1764802698144,-500.0,0.00013273,2]
[396205536,1764802698169,-300.0,0.00013673,2]
[396205537,1764802698192,-500.0,0.00013699,2]
[396205538,1764802698215,-500.0,0.00013699,2]
[396205539,1764802698238,-500.0,0.00013699,2]
[396205540,1764802698260,-1000.0,0.00013821,2]
[396205541,1764802698281,-600.0,0.00014221,2]
[396205542,1764802698301,-506.45744625,0.00014247,2]
[396205543,1764802698323,-1000.0,0.00014247,2]
[396205544,1764802698345,-1000.0,0.00014247,2]
[396205545,1764802698366,-1749.7173321,0.00014333,2]
[396205546,1764802698388,-300.0,0.00014335,2]
[396205547,1764802698413,-41543.82522165,0.00014336,2]
[396205548,1764802762782,300.0,0.0003287,120]
[396205549,1764802833618,999.0,0.00032876,120]
[396205550,1764802958955,1000.0,0.00032876,120]
[396205552,1764803042524,500.0,0.0003287,120]
[396205553,1764803061541,878.15317675,0.00032876,120]
[396205554,1764803063423,500.0,0.0003287,120]
[396205555,1764803065204,552.654756,0.00030137,120]
[396205556,1764803079349,500.0,0.0003287,120]
[396205557,1764803086794,500.0,0.0003287,120]
[396205558,1764803103432,500.0,0.0003287,120]
[396205559,1764803105598,500.0,0.00030137,120]
[396205560,1764803106226,500.0,0.00030411,120]